bitfinex-derivatives/quotes_SOLF0:USTF0_20241011
["timestamp","ask_amount","ask_price","bid_price","bid_amount"]
[1728673926761,1.4076,146.49,146.44,6.4]
[1728673926964,13.11,146.48,146.44,6.4]
[1728673927163,13.11,146.48,146.39,0.12502]
[1728673927465,13.11,146.48,146.41,6.4]
[1728673928167,1.4076,146.49,146.43,13.11]
[1728673928364,0.12502,146.51,146.41,6.4]
[1728673928365,0.12502,146.51,146.46,13.11]
[1728673928667,0.12502,146.51,146.46,6.4]
[1728673929467,3.4135,146.49,146.46,9.814]
[1728673929969,0.12502,146.51,146.46,19.51]
[1728673930566,3.4132,146.5,146.47,3.4136]
[1728673930867,0.12502,146.51,146.46,19.51]
[1728673931058,3.4132,146.5,146.46,22.9239]
[1728673931259,0.12502,146.51,146.46,19.51]
[1728673931763,0.12502,146.51,146.47,3.4138]
[1728673932268,3.4137,146.48,146.46,6.4]
[1728673933469,13.23502,146.51,146.44,6.4]
[1728673934682,13.11,146.49,146.42,13.11]
[1728673934981,3.4145,146.44,146.42,6.4]
[1728673935280,15.7979,146.48,146.42,6.4]
[1728673935679,3.415,146.42,146.39,9.94052]
[1728673935874,3.415,146.42,146.39,3.54052]
[1728673936080,13.11,146.46,146.39,6.52502]
[1728673936279,3.4154,146.41,146.39,6.52502]
[1728673936483,13.11,146.44,146.39,6.52502]
[1728673936680,13.11,146.42,146.39,0.12502]
[1728673936877,1.3352,146.41,146.39,0.12502]
[1728673937181,1.3352,146.41,146.34,1.3433]
[1728673937182,1.3352,146.41,146.33,3.54202]
[1728673937380,13.11,146.4,146.34,6.4]
[1728673938177,2.6773,146.41,146.34,6.4]
[1728673938678,3.4157,146.39,146.35,3.4165]
[1728673940288,2.6773,146.41,146.34,6.4]
[1728673940584,3.4156,146.4,146.34,6.4]
[1728673940784,2.6773,146.41,146.35,13.11]
[1728673941087,1.53902,146.45,146.37,13.11]
[1728673941677,1.53902,146.45,146.38,6.4]
[1728673941886,3.4147,146.43,146.39,3.4157]
[1728673942586,13.11,146.43,146.35,6.4]
[1728673943278,3.4158,146.39,146.35,9.8166]
[1728673945380,3.4158,146.39,146.35,6.4]
[1728673945584,3.4155,146.4,146.36,3.4161]
[1728673947388,13.11,146.41,146.35,9.8166]
[1728673947781,13.11,146.43,146.35,6.4]
[1728673948087,3.4155,146.4,146.37,3.4161]
[1728673948588,13.11,146.43,146.38,3.4159]
[1728673948790,13.11,146.43,146.35,6.4]
[1728673949084,3.4155,146.4,146.37,3.416]
[1728673951688,13.11,146.43,146.35,6.4]
[1728673952190,3.4158,146.39,146.35,9.8165]
[1728673952390,13.11,146.43,146.35,9.8165]
[1728673953186,3.4158,146.39,146.35,9.8165]
[1728673953389,13.11,146.43,146.35,6.4]
[1728673953686,13.11,146.39,146.33,6.64502]
[1728673953889,13.11,146.39,146.33,0.12502]
[1728673954090,3.4168,146.35,146.33,0.12502]
[1728673954788,13.11,146.37,146.33,0.12502]
[1728673954994,3.4168,146.34,146.33,0.12502]
[1728673955790,13.11,146.35,146.27,0.12502]
[1728673955988,3.4177,146.31,146.28,6.52]
[1728673956591,3.4174,146.32,146.28,6.52]
[1728673956792,3.4174,146.32,146.28,9.9381]
[1728673957088,3.4174,146.32,146.28,6.52]
[1728673958087,13.11,146.32,146.27,0.12502]
[1728673958286,14.4518,146.32,146.27,0.12502]
[1728673958899,1.3418,146.32,146.27,0.12502]
[1728673959697,13.11,146.3,146.27,0.12502]
[1728673960094,3.4182,146.28,146.27,0.12502]
[1728673961195,13.11,146.3,146.21,0.12502]
[1728673961403,3.419,146.25,146.22,3.4195]
[1728673961894,3.4184,146.28,146.25,3.4189]
[1728673962096,1.3332,146.31,146.24,13.11]
[1728673962796,1.3332,146.31,146.24,19.63]
[1728673963192,3.4175,146.32,146.28,3.4182]
[1728673963594,13.23502,146.33,146.28,3.4182]
[1728673963798,0.12502,146.33,146.28,3.4182]
[1728673964499,3.4175,146.31,146.28,3.4182]
[1728673966089,3.54212,146.33,146.3,3.4177]
[1728673966787,3.54212,146.33,146.29,3.4179]
[1728673968898,0.12502,146.33,146.28,9.9382]
[1728673969108,0.12502,146.33,146.28,6.52]
[1728673969994,3.54222,146.33,146.29,3.4178]
[1728673970193,0.12502,146.33,146.29,3.4178]
[1728673971003,3.4174,146.32,146.29,3.4178]
[1728673971203,0.12502,146.33,146.3,3.4176]
[1728673971501,0.12502,146.33,146.28,27.51]
[1728673972601,0.12502,146.33,146.29,3.4179]
[1728673972804,0.12502,146.33,146.28,27.51]
[1728673974002,0.12502,146.33,146.3,3.4176]
[1728673974902,0.12502,146.33,146.28,27.51]
[1728673975105,0.12502,146.33,146.31,3.4175]
[1728673975604,0.12502,146.33,146.32,9.7573]
[1728673976104,3.4159,146.38,146.34,3.4167]
[1728673976307,1.56332,146.39,146.34,3.4167]
[1728673976711,3.416,146.38,146.34,3.4167]
[1728673977500,4.97902,146.39,146.36,3.4163]
[1728673978004,4.97902,146.39,146.32,7.6621]
[1728673978202,4.97902,146.39,146.35,3.4165]
[1728673978603,3.54072,146.39,146.35,3.4165]
[1728673979106,20.99,146.37,146.25,6.34]
[1728673979305,20.99,146.37,146.25,7.6621]
[1728673979520,20.99,146.34,146.25,1.3221]
[1728673979704,20.99,146.34,146.26,9.7585]
[1728673979900,20.99,146.34,146.26,6.34]
[1728673980412,20.99,146.34,146.25,1.3221]
[1728673980610,20.99,146.34,146.26,6.34]
[1728673981704,3.4182,146.28,146.25,1.3221]
[1728673981918,20.99,146.34,146.25,7.6621]
[1728673982344,3.4182,146.28,146.25,6.34]
[1728673982717,3.4182,146.28,146.24,6.34]
[1728673984824,3.4182,146.28,146.24,9.7591]
[1728673988212,3.4182,146.28,146.25,3.4189]
[1728673988408,3.418,146.29,146.25,3.4189]
[1728673989612,20.99,146.32,146.25,3.4189]
[1728673989818,3.4182,146.28,146.24,6.34]
[1728673990028,0.12502,146.45,146.27,42.10502]
[1728673990222,2.6663,146.41,146.31,20.99]
[1728673990422,2.6663,146.41,146.32,19.46]
[1728673990715,2.6663,146.41,146.33,6.34]
[1728673991107,3.4161,146.37,146.34,3.4168]
[1728673991804,3.416,146.38,146.34,3.4168]
[1728673992107,2.6663,146.41,146.33,6.34]
[1728673992307,13.12,146.4,146.33,9.757]
[1728673992515,2.6663,146.41,146.33,9.757]
[1728673992811,3.4163,146.37,146.33,9.757]
[1728673993615,3.4159,146.38,146.34,3.4168]
[1728673993917,2.6663,146.41,146.33,6.34]
[1728673994315,21.12502,146.39,146.33,6.34]
[1728673994714,3.417,146.34,146.32,6.34]
[1728673995013,21.12502,146.39,146.27,0.12502]
[1728673995014,21.0,146.36,146.27,0.12502]
[1728673995316,3.4176,146.31,146.28,9.7582]
[1728673995524,1.3802,146.35,146.28,6.34]
[1728673995712,2.632,146.34,146.28,6.34]
[1728673995914,3.4177,146.31,146.28,6.34]
[1728673996313,2.632,146.34,146.28,6.34]
[1728673996507,3.4174,146.32,146.28,6.34]
[1728673996708,2.632,146.34,146.28,6.34]
[1728673996912,3.4172,146.33,146.29,3.4179]
[1728674001322,2.632,146.34,146.28,6.34]
[1728674001521,3.4177,146.31,146.28,9.7582]
[1728674001722,2.632,146.34,146.28,6.34]
[1728674002220,2.632,146.34,146.27,0.12502]
[1728674002521,23.632,146.34,146.28,6.34]
[1728674003316,3.4182,146.29,146.27,0.12502]
[1728674004120,3.4182,146.28,146.27,0.12502]
[1728674006027,23.632,146.34,146.27,0.12502]
[1728674006524,3.4182,146.29,146.27,0.12502]
[1728674006824,23.632,146.34,146.27,0.12502]
[1728674007025,3.4182,146.28,146.27,0.12502]
[1728674007223,21.0,146.29,146.24,6.46]
[1728674007625,21.0,146.29,146.2,1.38]
[1728674007819,21.0,146.29,146.22,6.46]
[1728674008020,1.4149,146.28,146.22,6.46]
[1728674008424,3.4192,146.24,146.22,6.46]
[1728674008628,1.4149,146.28,146.21,3.54482]
[1728674008820,1.384,146.27,146.21,6.58502]
[1728674009128,3.4194,146.23,146.21,6.58502]
[1728674009720,1.384,146.27,146.21,6.58502]
[1728674009921,3.4192,146.24,146.21,10.00482]
[1728674010422,1.384,146.27,146.21,6.58502]
[1728674011522,3.4193,146.24,146.21,10.00482]
[1728674012426,3.4194,146.23,146.21,10.00482]
[1728674013024,3.4194,146.23,146.21,6.58502]
[1728674013331,3.4194,146.23,146.21,0.12502]
[1728674015929,14.5421,146.26,146.21,0.12502]
[1728674016135,3.4196,146.22,146.21,0.12502]
[1728674018530,1.4121,146.26,146.21,0.12502]
[1728674018733,14.5421,146.26,146.21,0.12502]
[1728674018932,1.4121,146.26,146.21,0.12502]
[1728674019234,1.4121,146.26,146.22,6.46]
[1728674020233,4.8308,146.26,146.23,3.4193]
[1728674023652,1.4121,146.26,146.22,6.46]
[1728674024138,3.4193,146.24,146.22,6.46]
[1728674024741,13.13,146.25,146.21,0.12502]
[1728674024934,3.4196,146.23,146.21,0.12502]
[1728674025135,13.13,146.25,146.21,0.12502]
[1728674025641,3.4196,146.22,146.21,0.12502]
[1728674026336,13.13,146.25,146.21,0.12502]
[1728674026541,3.4194,146.23,146.21,0.12502]
[1728674028037,13.13,146.22,146.15,0.12502]
[1728674028543,13.13,146.22,146.16,3.4209]
[1728674029040,3.42,146.21,146.15,0.12502]
[1728674029338,7.8721,146.26,146.15,13.25502]
[1728674029339,13.13,146.24,146.15,13.25502]
[1728674029546,3.4196,146.23,146.18,3.4205]
[1728674029737,13.13,146.24,146.18,6.46]
[1728674031842,3.42,146.21,146.18,9.8805]
[1728674033747,3.42,146.21,146.18,6.46]
[1728674033950,3.4197,146.22,146.19,3.4203]
[1728674034144,13.13,146.24,146.19,3.4203]
[1728674034540,3.4199,146.21,146.18,9.8805]
[1728674034742,3.4199,146.21,146.18,6.46]
[1728674034951,21.0021,146.26,146.18,6.46]
[1728674035251,3.4193,146.24,146.22,3.4196]
[1728674035455,14.5421,146.26,146.18,19.59]
[1728674035644,3.4193,146.24,146.18,19.59]
[1728674035946,3.4193,146.24,146.2,3.4199]
[1728674036250,3.4193,146.24,146.18,6.46]
[1728674036251,3.42,146.21,146.18,6.46]
[1728674036939,3.42,146.21,146.18,9.8804]
[1728674037143,3.4197,146.22,146.18,6.46]
[1728674037949,3.4199,146.21,146.18,6.46]
[1728674038255,14.5421,146.26,146.18,6.42]
[1728674038747,14.5421,146.26,146.19,3.4202]
[1728674039052,1.4121,146.26,146.18,19.55]
[1728674039259,3.4193,146.24,146.2,3.42]
[1728674039554,3.4193,146.24,146.18,19.55]
[1728674039757,3.419,146.25,146.22,3.4196]
[1728674040352,4.8308,146.26,146.23,3.4193]
[1728674042562,3.4192,146.24,146.22,6.42]
[1728674043956,3.419,146.25,146.22,6.42]
[1728674044259,1.4121,146.26,146.22,6.42]
[1728674044654,4.8309,146.26,146.22,6.42]
[1728674044856,4.8309,146.26,146.23,3.4194]
[1728674045248,4.8309,146.26,146.22,9.8395]
[1728674045960,1.4121,146.26,146.22,9.8395]
[1728674046159,3.4189,146.25,146.22,9.8395]
[1728674046561,3.4189,146.25,146.22,6.42]
[1728674047061,3.4194,146.23,146.2,3.42]
[1728674047765,3.4198,146.22,146.19,6.42]
[1728674048263,3.4198,146.22,146.19,9.8402]
[1728674050367,3.4198,146.22,146.19,3.4202]
[1728674050752,3.4198,146.22,146.18,9.8404]
[1728674052863,13.13,146.25,146.18,9.8404]
[1728674053563,3.4198,146.22,146.18,9.8404]
[1728674054065,3.4198,146.22,146.19,3.4203]
[1728674055865,3.4199,146.21,146.19,3.4203]
[1728674057562,13.13,146.25,146.18,6.42]
[1728674057766,3.4195,146.23,146.21,3.4198]
[1728674058065,1.4121,146.26,146.21,3.4198]
[1728674058266,3.4193,146.24,146.21,3.4198]
[1728674059463,3.4194,146.23,146.21,3.4198]
[1728674060168,3.4193,146.24,146.21,3.4198]
[1728674061065,8.4,146.24,146.2,8.4]
[1728674061258,8.4,146.24,146.2,11.82]
[1728674061259,3.4194,146.23,146.2,11.82]
[1728674066365,3.4196,146.22,146.2,11.82]
[1728674067063,8.4,146.23,146.19,3.4202]
[1728674067267,3.4199,146.21,146.18,14.82]
[1728674067472,3.4199,146.21,146.18,18.2404]
[1728674067868,3.4199,146.21,146.18,14.82]
[1728674068068,8.4,146.23,146.18,14.82]
[1728674068275,3.4205,146.19,146.16,9.461]
[1728674068463,8.4,146.2,146.16,6.04]
[1728674068772,11.8203,146.2,146.17,3.4207]
[1728674069677,3.4203,146.2,146.17,3.4207]
[1728674070473,3.4203,146.19,146.17,3.4207]
[1728674071663,3.4203,146.19,146.16,6.04]
[1728674071868,3.4203,146.19,146.16,9.4608]
[1728674072675,3.4201,146.2,146.17,3.4206]
[1728674072875,8.4,146.21,146.16,6.04]
[1728674073674,3.4203,146.2,146.17,3.4208]
[1728674074772,8.4,146.2,146.16,6.04]
[1728674074977,3.4205,146.19,146.16,9.461]
[1728674076269,3.4206,146.18,146.16,6.04]
[1728674076575,8.4,146.2,146.16,6.04]
[1728674077374,3.4205,146.19,146.16,9.461]
[1728674078068,3.4206,146.18,146.16,9.461]
[1728674080270,11.8205,146.19,146.16,9.461]
[1728674080577,3.4205,146.19,146.16,9.461]
[1728674080772,3.4205,146.19,146.16,6.04]
[1728674080973,3.4205,146.19,146.17,3.4208]
[1728674081275,335.0,146.26,146.18,8.4]
[1728674081476,3.4198,146.22,146.19,3.4202]
[1728674083576,3.4195,146.23,146.2,3.42]
[1728674083778,1.4157,146.25,146.2,8.4]
[1728674083981,1.4157,146.25,146.23,3.4192]
[1728674084184,0.12502,146.27,146.22,8.4]
[1728674084677,3.54362,146.27,146.24,3.419]
[1728674086988,3.419,146.25,146.22,3.4196]
[1728674087282,11.819,146.25,146.22,3.4196]
[1728674087480,3.419,146.25,146.22,3.4196]
[1728674087681,11.819,146.25,146.22,3.4196]
[1728674088482,3.419,146.25,146.22,11.8196]
[1728674095788,8.52502,146.27,146.22,8.4]
[1728674095991,3.4188,146.26,146.23,3.4192]
[1728674096483,8.52502,146.27,146.23,3.4192]
[1728674096683,8.4,146.26,146.2,6.04]
[1728674096881,8.4,146.26,146.2,14.44]
[1728674097583,3.4192,146.24,146.21,3.4198]
[1728674099092,3.4188,146.26,146.23,3.4193]
[1728674099990,3.54362,146.27,146.24,3.419]
[1728674101093,3.4187,146.26,146.24,3.419]
[1728674101483,8.52502,146.27,146.24,3.419]
[1728674101687,3.54352,146.27,146.24,3.419]
[1728674102091,11.94352,146.27,146.24,3.419]
[1728674102397,8.4,146.26,146.2,14.44]
[1728674102797,3.4192,146.24,146.21,3.4197]
[1728674102999,8.4,146.26,146.2,14.44]
[1728674103399,3.4192,146.24,146.21,3.4197]
[1728674103591,8.4,146.23,146.15,0.12502]
[1728674103785,8.4,146.21,146.17,5.8]
[1728674103995,11.82,146.21,146.18,3.4205]
[1728674104793,11.82,146.21,146.17,5.8]
[1728674104999,8.4,146.24,146.19,8.4]
[1728674105296,11.8193,146.24,146.19,8.4]
[1728674105498,8.4,146.24,146.19,8.4]
[1728674105697,3.4195,146.23,146.2,3.4199]
[1728674106488,11.8193,146.24,146.21,3.4198]
[1728674106693,3.4193,146.24,146.21,3.4198]
[1728674107193,11.8193,146.24,146.21,3.4198]
[1728674107393,3.4195,146.23,146.2,3.4201]
[1728674107700,8.4,146.24,146.19,8.4]
[1728674108000,11.8192,146.24,146.21,3.4197]
[1728674109101,8.4,146.25,146.2,8.4]
[1728674109401,0.12502,146.27,146.24,8.4]
[1728674109993,0.12502,146.27,146.25,3.4188]
[1728674110198,8.52502,146.27,146.22,8.4]
[1728674111604,8.4,146.26,146.21,5.8]
[1728674112104,8.4,146.23,146.19,5.8]
[1728674112296,8.4,146.23,146.19,14.2]
[1728674112693,8.4,146.23,146.2,3.42]
[1728674112897,8.4,146.25,146.2,8.4]
[1728674113103,8.4,146.26,146.21,8.4]
[1728674113307,3.4191,146.25,146.21,11.8197]
[1728674113699,8.4,146.25,146.21,3.4197]
[1728674114599,3.4193,146.24,146.21,3.4197]
[1728674115006,8.4,146.25,146.21,3.4197]
[1728674115408,8.4,146.25,146.19,14.2]
[1728674115806,8.4,146.26,146.21,8.4]
[1728674116401,3.54362,146.27,146.21,8.4]
[1728674116605,0.12502,146.27,146.25,11.8189]
[1728674116807,0.12502,146.27,146.25,8.4]
[1728674117309,0.12502,146.27,146.25,11.8188]
[1728674117808,0.12502,146.27,146.25,3.4188]
[1728674118018,8.52502,146.27,146.2,1.3341]
[1728674118214,8.4,146.26,146.21,5.8]
[1728674118611,11.8188,146.26,146.21,9.2197]
[1728674119216,11.8188,146.26,146.22,3.4195]
[1728674120417,8.4,146.24,146.21,9.2198]
[1728674121011,8.4,146.24,146.21,5.8]
[1728674122313,8.4,146.24,146.21,9.2197]
[1728674122516,8.4,146.24,146.19,5.8]
[1728674122718,8.4,146.23,146.19,5.8]
[1728674123113,8.4,146.23,146.19,9.2202]
[1728674123617,8.4,146.23,146.19,3.4202]
[1728674123815,8.4,146.23,146.17,9.2206]
[1728674123816,3.41495109,146.23,146.17,9.2206]
[1728674124014,8.4,146.19,146.15,5.92502]
[1728674124418,8.4,146.19,146.15,0.12502]
[1728674124816,8.4,146.17,146.15,0.12502]
[1728674125314,8.4,146.16,146.15,0.12502]
[1728674127324,11.821,146.16,146.15,0.12502]
[1728674128126,8.4,146.16,146.15,0.12502]
[1728674128425,8.4,146.17,146.15,0.12502]
[1728674128616,9.7741,146.19,146.15,8.52502]
[1728674128814,9.7741,146.19,146.16,3.4209]
[1728674129926,8.4,146.2,146.17,3.4208]
[1728674130819,8.4,146.2,146.15,14.24502]
[1728674131020,11.8202,146.2,146.16,3.4209]
[1728674131816,10.40635391,146.22,146.15,14.24502]
[1728674131817,8.4,146.18,146.15,9.26622]
[1728674132129,8.4,146.17,146.15,9.26622]
[1728674133328,11.8204,146.19,146.15,5.84502]
[1728674133630,8.4,146.19,146.16,3.421]
[1728674135229,1.3081,146.22,146.19,3.4202]
[1728674135423,8.4,146.21,146.16,8.4]
[1728674135824,8.4,146.19,146.15,5.84502]
[1728674136020,8.4,146.19,146.17,3.4206]
[1728674136225,1.3081,146.22,146.18,8.4]
[1728674136428,8.4,146.24,146.19,8.4]
[1728674136730,8.4,146.24,146.19,14.12]
[1728674137130,8.4,146.24,146.19,8.4]
[1728674137338,8.4,146.24,146.2,5.72]
[1728674137628,8.4,146.23,146.2,5.72]
[1728674139530,11.8194,146.23,146.2,9.14]
[1728674140226,11.8194,146.23,146.2,5.72]
[1728674140227,8.4,146.23,146.2,5.72]
[1728674140432,8.4,146.21,146.18,3.4205]
[1728674141531,11.8199,146.21,146.18,3.4205]
[1728674141727,8.4,146.2,146.17,5.72]
[1728674141933,8.4,146.2,146.17,9.1407]
[1728674143823,11.8201,146.2,146.17,9.1407]
[1728674144429,3.4201,146.2,146.17,9.1407]
[1728674145334,8.4,146.21,146.17,5.72]
[1728674145530,11.8201,146.2,146.17,5.72]
[1728674145734,3.4201,146.2,146.17,5.72]
[1728674145926,8.4,146.21,146.17,5.72]
[1728674146132,11.8199,146.21,146.17,5.72]
[1728674146835,11.8199,146.21,146.17,9.1407]
[1728674147342,3.4199,146.21,146.17,9.1407]
[1728674147530,11.8199,146.21,146.17,9.1407]
[1728674148230,11.8197,146.22,146.19,3.4203]
[1728674148941,8.4,146.21,146.19,3.4203]
[1728674149137,8.4,146.21,146.17,5.72]
[1728674149431,8.4,146.2,146.17,5.72]
[1728674150040,11.8202,146.2,146.17,9.1407]
[1728674150832,11.8205,146.19,146.17,5.72]
[1728674151036,1.3281,146.22,146.17,5.72]
[1728674151339,8.4,146.21,146.17,5.72]
[1728674151738,11.82,146.21,146.18,3.4204]
[1728674152040,8.4,146.21,146.17,5.72]
[1728674152437,3.4201,146.2,146.17,9.1406]
[1728674152938,8.4,146.21,146.17,5.72]
[1728674153143,8.4,146.21,146.19,3.4203]
[1728674153845,8.4,146.21,146.17,5.72]
[1728674154045,11.8199,146.21,146.18,3.4205]
[1728674155043,0.12502,146.27,146.19,8.4]
[1728674155240,0.12502,146.27,146.23,8.4]
[1728674155449,0.12502,146.27,146.25,8.4]
[1728674155638,0.12502,146.27,146.26,3.4187]
[1728674155940,0.12502,146.27,146.21,5.72]
[1728674156147,0.12502,146.27,146.23,8.4]
[1728674157144,0.12502,146.27,146.25,3.4187]
[1728674157539,0.12502,146.27,146.24,3.4191]
[1728674158538,0.12502,146.27,146.25,3.4188]
[1728674159746,0.12502,146.27,146.24,8.4]
[1728674159945,0.12502,146.27,146.26,3.4187]
[1728674160138,0.12502,146.27,146.21,5.72]
[1728674160339,0.12502,146.27,146.23,11.8192]
[1728674160340,3.54362,146.27,146.23,11.8192]
[1728674160539,3.54362,146.27,146.23,8.4]
[1728674160748,8.4,146.26,146.18,1.3697]
[1728674160943,0.12502,146.27,146.18,1.3697]
[1728674160944,8.4,146.23,146.19,5.72]
[1728674161348,8.4,146.21,146.19,5.72]
[1728674162749,8.4,146.21,146.18,3.4205]
[1728674164547,3.4199,146.21,146.18,3.4205]
[1728674164748,3.4199,146.21,146.17,5.72]
[1728674164942,13.14,146.21,146.17,5.72]
[1728674165450,13.14,146.21,146.15,9.26612]
[1728674166760,3.4206,146.18,146.15,3.54612]
[1728674167348,3.35841313,146.23,146.15,3.54612]
[1728674167654,13.14,146.22,146.15,0.12502]
[1728674168352,16.5596,146.22,146.15,0.12502]
[1728674168547,14.4751,146.24,146.15,13.26502]
[1728674168945,14.4751,146.24,146.2,3.4199]
[1728674169154,14.4751,146.24,146.18,5.72]
[1728674169656,3.4195,146.23,146.19,3.4203]
[1728674170356,1.3351,146.24,146.18,5.72]
[1728674170651,4.7544,146.24,146.21,3.4198]
[1728674171353,1.3351,146.24,146.18,5.72]
[1728674171555,3.4194,146.23,146.2,3.42]
[1728674172455,4.7543,146.24,146.2,3.42]
[1728674172753,4.7543,146.24,146.2,3.4199]
[1728674173154,3.4196,146.23,146.2,3.4199]
[1728674173357,1.3351,146.24,146.18,5.72]
[1728674173561,4.7543,146.24,146.18,5.72]
[1728674174044,4.7543,146.24,146.21,3.4198]
[1728674174245,3.419,146.25,146.18,5.72]
[1728674175148,3.419,146.25,146.2,3.4201]
[1728674175355,3.419,146.25,146.18,5.72]
[1728674175849,3.419,146.25,146.21,3.4197]
[1728674176957,3.4192,146.24,146.21,3.4197]
[1728674177156,2.7495,146.26,146.18,5.72]
[1728674177356,13.14,146.23,146.17,5.72]
[1728674177557,16.47640254,146.23,146.15,0.12502]
[1728674177757,1.316,146.22,146.16,5.72]
[1728674178055,3.4203,146.2,146.16,9.1409]
[1728674178556,3.4203,146.2,146.17,3.4208]
[1728674179559,1.316,146.22,146.16,5.72]
[1728674179856,13.14,146.25,146.17,13.14]
[1728674180255,3.4192,146.24,146.17,13.14]
[1728674180454,13.14,146.25,146.17,13.14]
[1728674180853,3.4192,146.24,146.2,3.4199]
[1728674181055,13.14,146.25,146.2,5.72]
[1728674182253,3.4192,146.24,146.21,3.4197]
[1728674182449,4.1447,146.26,146.2,5.72]
[1728674183455,3.4192,146.24,146.21,3.4198]
[1728674183655,4.1447,146.26,146.21,3.4198]
[1728674183852,4.1447,146.26,146.2,5.72]
[1728674184162,3.419,146.25,146.2,5.72]
[1728674184363,4.1447,146.26,146.2,5.72]
[1728674184756,3.4193,146.24,146.21,3.4198]
[1728674185057,3.4193,146.24,146.2,5.72]
[1728674185456,17.2847,146.26,146.2,5.72]
[1728674185659,4.1447,146.26,146.2,5.72]
[1728674187667,1.3952,146.26,146.21,13.14]
[1728674187962,0.12502,146.27,146.24,3.419]
[1728674188662,0.12502,146.27,146.25,3.4188]
[1728674189056,0.12502,146.27,146.24,5.66]
[1728674189651,0.12502,146.27,146.25,3.4189]
[1728674189856,0.12502,146.27,146.24,5.66]
[1728674190057,3.54372,146.27,146.24,5.66]
[1728674191062,0.12502,146.27,146.24,5.66]
[1728674191267,0.12502,146.27,146.24,9.079]
[1728674192358,3.54362,146.27,146.24,5.66]
[1728674192961,3.4188,146.26,146.24,5.66]
[1728674193164,0.12502,146.27,146.24,5.66]
[1728674193563,3.54362,146.27,146.24,5.66]
[1728674193867,0.12502,146.27,146.24,5.66]
[1728674194167,0.12502,146.27,146.24,9.079]
[1728674194566,0.12502,146.27,146.24,5.66]
[1728674194766,0.12502,146.27,146.25,3.4189]
[1728674194965,0.12502,146.27,146.24,5.66]
[1728674195163,0.12502,146.27,146.25,3.4188]
[1728674197971,0.12502,146.27,146.24,5.66]
[1728674197972,3.54362,146.27,146.24,9.0789]
[1728674198198,13.26502,146.27,146.19,13.14]
[1728674198473,13.26502,146.27,146.2,5.66]
[1728674198666,13.26502,146.27,146.21,3.4197]
[1728674199073,0.12502,146.27,146.2,5.66]
[1728674199276,3.419,146.25,146.22,3.4196]
[1728674199461,13.26502,146.27,146.2,5.66]
[1728674200471,3.4191,146.25,146.21,3.4197]
[1728674202572,3.4191,146.25,146.22,3.4196]
[1728674204372,3.4194,146.23,146.2,9.08]
[1728674205477,1.4135,146.26,146.2,5.66]
[1728674205673,3.4193,146.24,146.21,3.4198]